[Event "Live Chess"]
[Site "Chess.com"]
[Date "2024.06.01"]
[Round "-"]
[White "elephantgerrald"]
[Black "Nathaniel250"]
[Result "0-1"]
[WhiteElo "785"]
[BlackElo "1481"]
[TimeControl "300"]
[EndTime "12:11:44 PDT"]
[Termination "Nathaniel250 won by checkmate"]

1. e4 {[%clk 0:04:51.9]} 1... c5 {[%clk 0:04:58.4]} 2. Nf3 {[%clk 0:04:49.8]}
2... Nc6 {[%clk 0:04:56.5]} 3. Bb5 {[%clk 0:04:48.1]} 3... e6 {[%clk 0:04:51.8]}
4. O-O {[%clk 0:04:30.7]} 4... a6 {[%clk 0:04:42.8]} 5. Bxc6 {[%clk 0:04:28.5]}
5... bxc6 {[%clk 0:04:42.7]} 6. Nc3 {[%clk 0:04:20.2]} 6... d6 {[%clk 0:04:36]}
7. d3 {[%clk 0:04:17.6]} 7... Nf6 {[%clk 0:04:34.3]} 8. Be3 {[%clk 0:04:14.7]}
8... Be7 {[%clk 0:04:30.8]} 9. h3 {[%clk 0:03:54.8]} 9... d5 {[%clk 0:04:28.9]}
10. exd5 {[%clk 0:03:53.3]} 10... cxd5 {[%clk 0:04:27.7]} 11. Ne5 {[%clk
0:03:51.7]} 11... d4 {[%clk 0:04:23.2]} 12. Nc6 {[%clk 0:03:48.9]} 12... Qc7
{[%clk 0:04:10.3]} 13. Nxe7 {[%clk 0:03:36.5]} 13... Qxe7 {[%clk 0:04:10.2]} 14.
Qf3 {[%clk 0:03:28.1]} 14... Bb7 {[%clk 0:04:03]} 15. Qg3 {[%clk 0:03:20.8]}
15... dxe3 {[%clk 0:03:58]} 16. fxe3 {[%clk 0:03:16.3]} 16... Nh5 {[%clk
0:03:49.3]} 17. Qf3 {[%clk 0:03:10.3]} 17... Bxf3 {[%clk 0:03:47.1]} 18. gxf3
{[%clk 0:03:08.3]} 18... Qg5+ {[%clk 0:03:44.8]} 19. Kf2 {[%clk 0:03:05]} 19...
Qg3+ {[%clk 0:03:42.9]} 20. Ke2 {[%clk 0:03:03.3]} 20... Qg2+ {[%clk 0:03:39.2]}
21. Rf2 {[%clk 0:03:01.6]} 21... Ng3+ {[%clk 0:03:37]} 22. Kd2 {[%clk
0:02:38.6]} 22... Qxf2+ {[%clk 0:03:35.6]} 23. Kc1 {[%clk 0:02:36.8]} 23... Qe1+
{[%clk 0:03:33.2]} 24. Nd1 {[%clk 0:02:36]} 24... Ne2+ {[%clk 0:03:32.3]} 25.
Kb1 {[%clk 0:02:34.5]} 25... Qxd1# {[%clk 0:03:31.6]} 0-1

[Event "Live Chess"]
[Site "Chess.com"]
[Date "2024.06.01"]
[Round "-"]
[White "NAZRIZ1977"]
[Black "Duke_of_Bebington"]
[Result "1-0"]
[WhiteElo "2126"]
[BlackElo "1598"]
[TimeControl "300"]
[EndTime "12:11:50 PDT"]
[Termination "NAZRIZ1977 won on time"]

1. e4 {[%clk 0:04:54.7]} 1... e5 {[%clk 0:04:58.9]} 2. Nf3 {[%clk 0:04:53.3]}
2... Nf6 {[%clk 0:04:57.9]} 3. Nxe5 {[%clk 0:04:49.9]} 3... d6 {[%clk
0:04:56.5]} 4. Nf3 {[%clk 0:04:48.8]} 4... Nxe4 {[%clk 0:04:55.7]} 5. d4 {[%clk
0:04:48.2]} 5... d5 {[%clk 0:04:54.5]} 6. Bd3 {[%clk 0:04:45.6]} 6... Bd6 {[%clk
0:04:53.2]} 7. h3 {[%clk 0:04:44.7]} 7... O-O {[%clk 0:04:51.7]} 8. O-O {[%clk
0:04:44.2]} 8... Nd7 {[%clk 0:04:42.7]} 9. c4 {[%clk 0:04:42.4]} 9... c6 {[%clk
0:04:41.3]} 10. Re1 {[%clk 0:04:39.4]} 10... Ndf6 {[%clk 0:04:39.8]} 11. Nc3
{[%clk 0:04:37.7]} 11... Nxc3 {[%clk 0:04:31.5]} 12. bxc3 {[%clk 0:04:36.4]}
12... dxc4 {[%clk 0:04:28.9]} 13. Bxc4 {[%clk 0:04:34.4]} 13... Bf5 {[%clk
0:04:27.2]} 14. Bg5 {[%clk 0:04:30.1]} 14... Be7 {[%clk 0:04:08.8]} 15. Bd3
{[%clk 0:04:28]} 15... Bxd3 {[%clk 0:04:05.1]} 16. Qxd3 {[%clk 0:04:27.9]} 16...
Nd5 {[%clk 0:03:58.3]} 17. Bd2 {[%clk 0:04:11.2]} 17... Bf6 {[%clk 0:03:44.8]}
18. c4 {[%clk 0:04:02]} 18... Nb6 {[%clk 0:03:29.9]} 19. Bc3 {[%clk 0:04:00.4]}
19... Qc7 {[%clk 0:03:23.5]} 20. Rad1 {[%clk 0:03:54.3]} 20... Rad8 {[%clk
0:03:21.7]} 21. Qf1 {[%clk 0:03:46.7]} 21... Qf4 {[%clk 0:03:05.8]} 22. Ba5
{[%clk 0:03:33.5]} 22... Rde8 {[%clk 0:02:32.7]} 23. Bxb6 {[%clk 0:03:23.1]}
23... axb6 {[%clk 0:02:31.1]} 24. d5 {[%clk 0:03:23]} 24... Rxe1 {[%clk
0:02:10.3]} 25. Qxe1 {[%clk 0:03:19.5]} 25... Qxc4 {[%clk 0:02:03.5]} 26. d6
{[%clk 0:03:17.8]} 26... Rd8 {[%clk 0:02:00]} 27. d7 {[%clk 0:03:14.2]} 27...
Qe6 {[%clk 0:01:54.7]} 28. Qd2 {[%clk 0:03:07.4]} 28... Kf8 {[%clk 0:01:44.1]}
29. a4 {[%clk 0:02:48.5]} 29... Be7 {[%clk 0:01:37.3]} 30. Qd3 {[%clk
0:02:39.7]} 30... Qg6 {[%clk 0:01:18.3]} 31. Qd4 {[%clk 0:02:32.8]} 31... Bc5
{[%clk 0:01:15.7]} 32. Qf4 {[%clk 0:02:25.1]} 32... Qe6 {[%clk 0:00:57.6]} 33.
Ng5 {[%clk 0:02:15.7]} 33... Qg6 {[%clk 0:00:46.2]} 34. h4 {[%clk 0:02:12]}
34... h6 {[%clk 0:00:43.1]} 35. Nf3 {[%clk 0:02:07]} 35... Qc2 {[%clk
0:00:34.2]} 36. Rd2 {[%clk 0:02:04.8]} 36... Qc1+ {[%clk 0:00:23]} 37. Kh2
{[%clk 0:02:03.2]} 37... g5 {[%clk 0:00:09.8]} 38. hxg5 {[%clk 0:02:00.4]} 38...
hxg5 {[%clk 0:00:09.7]} 39. Nxg5 {[%clk 0:01:59.5]} 1-0

[Event "Live Chess"]
[Site "Chess.com"]
[Date "2024.06.01"]
[Round "-"]
[White "ossie57"]
[Black "booktrunk"]
[Result "1/2-1/2"]
[WhiteElo "1635"]
[BlackElo "1369"]
[TimeControl "300"]
[EndTime "12:12:02 PDT"]
[Termination "Game drawn by repetition"]

1. d4 {[%clk 0:04:55.2]} 1... b6 {[%clk 0:04:58.8]} 2. Nc3 {[%clk 0:04:53.9]}
2... Bb7 {[%clk 0:04:54.1]} 3. Bf4 {[%clk 0:04:52.8]} 3... e6 {[%clk 0:04:43]}
4. e4 {[%clk 0:04:33.2]} 4... h6 {[%clk 0:04:28.5]} 5. Nf3 {[%clk 0:04:26.8]}
5... Nf6 {[%clk 0:04:16.9]} 6. Bd3 {[%clk 0:04:12.5]} 6... Bb4 {[%clk
0:04:08.8]} 7. Qe2 {[%clk 0:04:09]} 7... Bxc3+ {[%clk 0:03:45.4]} 8. bxc3 {[%clk
0:04:06]} 8... d6 {[%clk 0:03:43.2]} 9. O-O {[%clk 0:03:56.2]} 9... O-O {[%clk
0:03:41]} 10. a4 {[%clk 0:03:52.1]} 10... Nbd7 {[%clk 0:03:38.7]} 11. a5 {[%clk
0:03:51.5]} 11... bxa5 {[%clk 0:03:37.2]} 12. Rxa5 {[%clk 0:03:50.1]} 12... c5
{[%clk 0:03:33.7]} 13. Bxd6 {[%clk 0:03:48.4]} 13... Qxa5 {[%clk 0:03:28.9]} 14.
Bxf8 {[%clk 0:03:46.7]} 14... Kxf8 {[%clk 0:03:27.8]} 15. e5 {[%clk 0:03:36.6]}
15... Ng8 {[%clk 0:03:23]} 16. Be4 {[%clk 0:03:31.1]} 16... Bxe4 {[%clk
0:03:19.6]} 17. Qxe4 {[%clk 0:03:31]} 17... Rb8 {[%clk 0:03:12]} 18. Qc6 {[%clk
0:03:21.5]} 18... Qd8 {[%clk 0:03:02.6]} 19. Qd6+ {[%clk 0:03:15.8]} 19... Ke8
{[%clk 0:02:56.4]} 20. Nd2 {[%clk 0:03:07.4]} 20... cxd4 {[%clk 0:02:54.2]} 21.
cxd4 {[%clk 0:03:03.9]} 21... Nf8 {[%clk 0:02:53]} 22. Qc6+ {[%clk 0:02:59.6]}
22... Qd7 {[%clk 0:02:50.5]} 23. Qa6 {[%clk 0:02:51.8]} 23... Ne7 {[%clk
0:02:47.3]} 24. Nc4 {[%clk 0:02:43.6]} 24... Qxd4 {[%clk 0:02:40.8]} 25. Nd6+
{[%clk 0:02:42.4]} 25... Kd8 {[%clk 0:02:30.9]} 26. Nxf7+ {[%clk 0:02:39.8]}
26... Ke8 {[%clk 0:02:28.2]} 27. Nd6+ {[%clk 0:02:36.8]} 27... Kd8 {[%clk
0:02:26]} 28. Nf7+ {[%clk 0:02:21.1]} 28... Ke8 {[%clk 0:02:24.4]} 29. Nd6+
{[%clk 0:02:16.9]} 29... Kd8 {[%clk 0:02:23.2]} 30. Nf7+ {[%clk 0:02:16.1]}
1/2-1/2

[Event "Live Chess"]
[Site "Chess.com"]
[Date "2024.06.01"]
[Round "-"]
[White "EPotapov05"]
[Black "MaksymYurii"]
[Result "1-0"]
[WhiteElo "1833"]
[BlackElo "934"]
[TimeControl "300"]
[EndTime "12:12:30 PDT"]
[Termination "EPotapov05 won by checkmate"]

1. d4 {[%clk 0:04:56.6]} 1... e5 {[%clk 0:04:58.4]} 2. dxe5 {[%clk 0:04:54.7]}
2... Qe7 {[%clk 0:04:56.8]} 3. Nf3 {[%clk 0:04:52.4]} 3... d6 {[%clk 0:04:53.8]}
4. exd6 {[%clk 0:04:49.8]} 4... cxd6 {[%clk 0:04:51.8]} 5. Nc3 {[%clk
0:04:45.5]} 5... Nf6 {[%clk 0:04:49.5]} 6. Bg5 {[%clk 0:04:43.2]} 6... h6 {[%clk
0:04:44.5]} 7. Nd5 {[%clk 0:04:41.7]} 7... Qd8 {[%clk 0:04:39.7]} 8. Nxf6+
{[%clk 0:04:31.1]} 8... gxf6 {[%clk 0:04:37.9]} 9. Bf4 {[%clk 0:04:29.8]} 9...
Nc6 {[%clk 0:04:29.6]} 10. e3 {[%clk 0:04:28.6]} 10... d5 {[%clk 0:04:20.5]} 11.
Bb5 {[%clk 0:04:20.8]} 11... Bd7 {[%clk 0:04:17.9]} 12. Qxd5 {[%clk 0:04:12.7]}
12... Be7 {[%clk 0:04:12.3]} 13. c3 {[%clk 0:04:04.2]} 13... a6 {[%clk
0:04:03.4]} 14. Bc4 {[%clk 0:04:03.2]} 14... b5 {[%clk 0:03:41.2]} 15. Qxf7#
{[%clk 0:04:00.8]} 1-0

[Event "Live Chess"]
[Site "Chess.com"]
[Date "2024.06.01"]
[Round "-"]
[White "Queensandpawns"]
[Black "GwaryTek"]
[Result "0-1"]
[WhiteElo "2399"]
[BlackElo "1951"]
[TimeControl "300"]
[EndTime "12:12:36 PDT"]
[Termination "GwaryTek won by checkmate"]

1. e4 {[%clk 0:04:59.3]} 1... Nf6 {[%clk 0:04:58.7]} 2. e5 {[%clk 0:04:58.3]}
2... Nd5 {[%clk 0:04:57]} 3. c4 {[%clk 0:04:58.2]} 3... Nb6 {[%clk 0:04:55.9]}
4. a4 {[%clk 0:04:58.1]} 4... a5 {[%clk 0:04:54.6]} 5. Ra3 {[%clk 0:04:58]} 5...
d6 {[%clk 0:04:48.1]} 6. exd6 {[%clk 0:04:52.5]} 6... cxd6 {[%clk 0:04:45.7]} 7.
Re3 {[%clk 0:04:52.4]} 7... Nc6 {[%clk 0:04:43.6]} 8. b3 {[%clk 0:04:46.9]} 8...
Bf5 {[%clk 0:04:41.4]} 9. Nc3 {[%clk 0:04:45.4]} 9... e6 {[%clk 0:04:39.2]} 10.
d4 {[%clk 0:04:44.2]} 10... Be7 {[%clk 0:04:33.8]} 11. d5 {[%clk 0:04:41.5]}
11... Nb4 {[%clk 0:04:31.7]} 12. dxe6 {[%clk 0:04:21.9]} 12... Nc2+ {[%clk
0:04:11.8]} 13. Ke2 {[%clk 0:04:20]} 13... Nxe3 {[%clk 0:04:06.4]} 14. exf7+
{[%clk 0:04:18.8]} 14... Kxf7 {[%clk 0:04:00.4]} 15. Bxe3 {[%clk 0:04:18.7]}
15... Re8 {[%clk 0:03:55.4]} 16. Qd4 {[%clk 0:04:16.9]} 16... Bf6 {[%clk
0:03:49.4]} 17. Qf4 {[%clk 0:04:01.6]} 17... Bc2 {[%clk 0:03:23.6]} 18. Kd2
{[%clk 0:03:57.8]} 18... Bxb3 {[%clk 0:03:19.4]} 19. Nf3 {[%clk 0:03:47.4]}
19... Kg8 {[%clk 0:03:13.5]} 20. Bd3 {[%clk 0:03:43.9]} 20... d5 {[%clk
0:02:52.5]} 21. c5 {[%clk 0:03:40.7]} 21... Nc4+ {[%clk 0:02:43.4]} 22. Kc1
{[%clk 0:03:21]} 22... Bxc3 {[%clk 0:02:37.8]} 23. Qf5 {[%clk 0:03:17.5]} 23...
g6 {[%clk 0:02:27.6]} 24. Qh3 {[%clk 0:03:11.2]} 24... Nxe3 {[%clk 0:02:07.7]}
25. Qh6 {[%clk 0:02:57.7]} 25... Bg7 {[%clk 0:01:48]} 26. Qh3 {[%clk 0:02:52.8]}
26... Qf6 {[%clk 0:01:29.5]} 27. fxe3 {[%clk 0:02:45.7]} 27... Qb2# {[%clk
0:01:26.4]} 0-1

[Event "Live Chess"]
[Site "Chess.com"]
[Date "2024.06.01"]
[Round "-"]
[White "WorcesterYork"]
[Black "JanMur7"]
[Result "0-1"]
[WhiteElo "2529"]
[BlackElo "2301"]
[TimeControl "300"]
[EndTime "12:12:44 PDT"]
[Termination "JanMur7 won by resignation"]

1. d4 {[%clk 0:04:59.2]} 1... Nf6 {[%clk 0:04:56.1]} 2. Bg5 {[%clk 0:04:58.7]}
2... d5 {[%clk 0:04:53.3]} 3. Bxf6 {[%clk 0:04:57.9]} 3... exf6 {[%clk
0:04:53.2]} 4. e3 {[%clk 0:04:57.5]} 4... c5 {[%clk 0:04:52.5]} 5. dxc5 {[%clk
0:04:56.2]} 5... Bxc5 {[%clk 0:04:52.4]} 6. Nc3 {[%clk 0:04:55.1]} 6... d4
{[%clk 0:04:46.7]} 7. exd4 {[%clk 0:04:54]} 7... Qxd4 {[%clk 0:04:46.6]} 8. Qxd4
{[%clk 0:04:52.8]} 8... Bxd4 {[%clk 0:04:46.5]} 9. Bb5+ {[%clk 0:04:50.5]} 9...
Bd7 {[%clk 0:04:45.1]} 10. Bxd7+ {[%clk 0:04:48.9]} 10... Nxd7 {[%clk 0:04:45]}
11. Nge2 {[%clk 0:04:46.8]} 11... Bb6 {[%clk 0:04:41.6]} 12. Nd5 {[%clk
0:04:44.2]} 12... O-O-O {[%clk 0:04:34.5]} 13. Nxb6+ {[%clk 0:04:42.5]} 13...
Nxb6 {[%clk 0:04:34.4]} 14. Rd1 {[%clk 0:04:36.9]} 14... Nc4 {[%clk 0:04:31.7]}
15. b3 {[%clk 0:04:35.1]} 15... Na3 {[%clk 0:04:30.3]} 16. Rxd8+ {[%clk
0:04:32.3]} 16... Rxd8 {[%clk 0:04:29.2]} 17. f3 {[%clk 0:04:28.4]} 17... Nxc2+
{[%clk 0:04:24.6]} 18. Kf2 {[%clk 0:04:28.3]} 18... Nb4 {[%clk 0:04:23]} 19. a3
{[%clk 0:04:24.1]} 19... Nd3+ {[%clk 0:04:21.7]} 20. Ke3 {[%clk 0:04:23.2]}
20... Ne5 {[%clk 0:04:19.3]} 21. Rc1+ {[%clk 0:04:21.3]} 21... Kb8 {[%clk
0:04:10.9]} 22. Nd4 {[%clk 0:04:20.5]} 22... Re8 {[%clk 0:04:07.8]} 23. Kf2
{[%clk 0:04:19.3]} 23... Nd3+ {[%clk 0:04:06.3]} 0-1

[Event "Live Chess"]
[Site "Chess.com"]
[Date "2024.06.01"]
[Round "-"]
[White "Brooms1989"]
[Black "chess5013"]
[Result "0-1"]
[WhiteElo "1088"]
[BlackElo "1301"]
[TimeControl "300"]
[EndTime "12:12:54 PDT"]
[Termination "chess5013 won by resignation"]

1. e4 {[%clk 0:04:58]} 1... c6 {[%clk 0:04:58.3]} 2. Nf3 {[%clk 0:04:56]} 2...
d5 {[%clk 0:04:56.9]} 3. exd5 {[%clk 0:04:55.5]} 3... cxd5 {[%clk 0:04:56]} 4.
Ne5 {[%clk 0:04:54.3]} 4... Bf5 {[%clk 0:04:48.7]} 5. Bb5+ {[%clk 0:04:43.9]}
5... Nd7 {[%clk 0:04:42.4]} 6. Bxd7+ {[%clk 0:04:37.3]} 6... Bxd7 {[%clk
0:04:40.3]} 7. Qf3 {[%clk 0:04:35.4]} 7... Nf6 {[%clk 0:04:09.3]} 8. d4 {[%clk
0:04:24.5]} 8... e6 {[%clk 0:04:07.7]} 9. O-O {[%clk 0:04:16.2]} 9... Bd6 {[%clk
0:04:03.7]} 10. Bg5 {[%clk 0:04:06.4]} 10... h6 {[%clk 0:03:40.5]} 11. Nxd7
{[%clk 0:03:57.5]} 11... Qxd7 {[%clk 0:03:38.3]} 12. Bxf6 {[%clk 0:03:55.6]}
12... gxf6 {[%clk 0:03:37]} 13. Qxf6 {[%clk 0:03:54.2]} 13... Rg8 {[%clk
0:03:27.4]} 14. Qxh6 {[%clk 0:03:34.3]} 14... O-O-O {[%clk 0:03:25.3]} 15. Nd2
{[%clk 0:03:27.8]} 15... Rh8 {[%clk 0:03:19.2]} 0-1

[Event "Live Chess"]
[Site "Chess.com"]
[Date "2024.06.01"]
[Round "-"]
[White "Silverback7829"]
[Black "degringolade64"]
[Result "0-1"]
[WhiteElo "1168"]
[BlackElo "2062"]
[TimeControl "300"]
[EndTime "12:13:05 PDT"]
[Termination "degringolade64 won by checkmate"]

1. d4 {[%clk 0:04:56.9]} 1... Nf6 {[%clk 0:04:58.4]} 2. Nf3 {[%clk 0:04:55.1]}
2... d5 {[%clk 0:04:57.9]} 3. Nc3 {[%clk 0:04:52.3]} 3... e6 {[%clk 0:04:53.6]}
4. e3 {[%clk 0:04:49.7]} 4... Bb4 {[%clk 0:04:51.4]} 5. Bb5+ {[%clk 0:04:44.6]}
5... c6 {[%clk 0:04:47.7]} 6. Bd3 {[%clk 0:04:41.3]} 6... c5 {[%clk 0:04:42.7]}
7. dxc5 {[%clk 0:04:38.7]} 7... Bxc3+ {[%clk 0:04:40.9]} 8. bxc3 {[%clk
0:04:35.5]} 8... Qa5 {[%clk 0:04:40.4]} 9. Ne5 {[%clk 0:04:29.1]} 9... Qxc3+
{[%clk 0:04:37.3]} 10. Bd2 {[%clk 0:04:21.4]} 10... Qxe5 {[%clk 0:04:35.9]} 11.
Bb5+ {[%clk 0:04:16.2]} 11... Bd7 {[%clk 0:04:34.3]} 12. Bxd7+ {[%clk
0:04:13.4]} 12... Nbxd7 {[%clk 0:04:34.2]} 13. O-O {[%clk 0:04:10.1]} 13... O-O
{[%clk 0:04:32.2]} 14. c3 {[%clk 0:04:04.6]} 14... Nxc5 {[%clk 0:04:30]} 15. Rb1
{[%clk 0:03:59.6]} 15... Rac8 {[%clk 0:04:26.4]} 16. Qe2 {[%clk 0:03:49.9]}
16... Nfe4 {[%clk 0:04:19]} 17. f3 {[%clk 0:03:46.2]} 17... Nxd2 {[%clk
0:04:16.1]} 18. Qxd2 {[%clk 0:03:43.6]} 18... b6 {[%clk 0:04:05.4]} 19. Qc2
{[%clk 0:03:33.2]} 19... g6 {[%clk 0:04:03.3]} 20. f4 {[%clk 0:03:29.8]} 20...
Qxe3+ {[%clk 0:04:02.2]} 21. Kh1 {[%clk 0:03:19.1]} 21... Ne4 {[%clk 0:04:00.3]}
22. Rf3 {[%clk 0:03:13.5]} 22... Qc5 {[%clk 0:03:47.1]} 23. g4 {[%clk
0:02:59.4]} 23... f5 {[%clk 0:03:42.5]} 24. gxf5 {[%clk 0:02:55]} 24... exf5
{[%clk 0:03:42.4]} 25. c4 {[%clk 0:02:48.1]} 25... Qxc4 {[%clk 0:03:39.3]} 26.
Qxc4 {[%clk 0:02:42.9]} 26... dxc4 {[%clk 0:03:39.2]} 27. a3 {[%clk 0:02:36.4]}
27... c3 {[%clk 0:03:38.3]} 28. Rc1 {[%clk 0:02:28.3]} 28... Rfd8 {[%clk
0:03:35.6]} 29. Rff1 {[%clk 0:02:25.6]} 29... Rd2 {[%clk 0:03:32.2]} 30. Rfd1
{[%clk 0:02:17.2]} 30... Rcd8 {[%clk 0:03:29.8]} 31. Rxd2 {[%clk 0:02:09.5]}
31... cxd2 {[%clk 0:03:28.7]} 32. Rd1 {[%clk 0:02:05.2]} 32... Nf2+ {[%clk
0:03:27.2]} 33. Kg1 {[%clk 0:01:57.3]} 33... Nxd1 {[%clk 0:03:27.1]} 34. h3
{[%clk 0:01:51.9]} 34... Ne3 {[%clk 0:03:25.5]} 35. Kf2 {[%clk 0:01:44.5]} 35...
d1=Q {[%clk 0:03:23.7]} 36. Kxe3 {[%clk 0:01:41.2]} 36... Rd3+ {[%clk
0:03:21.5]} 37. Kf2 {[%clk 0:01:36.9]} 37... Qc2+ {[%clk 0:03:20.6]} 38. Ke1
{[%clk 0:01:24.3]} 38... Rd1# {[%clk 0:03:20]} 0-1

[Event "Live Chess"]
[Site "Chess.com"]
[Date "2024.06.01"]
[Round "-"]
[White "Trecregin"]
[Black "MagnersCarlsberg2870"]
[Result "1-0"]
[WhiteElo "1867"]
[BlackElo "1844"]
[TimeControl "300"]
[EndTime "12:13:14 PDT"]
[Termination "Trecregin won by resignation"]

1. e4 {[%clk 0:04:58.5]} 1... d5 {[%clk 0:04:56.9]} 2. d4 {[%clk 0:04:56.6]}
2... e5 {[%clk 0:04:52.8]} 3. dxe5 {[%clk 0:04:53.5]} 3... dxe4 {[%clk
0:04:51.3]} 4. Qxd8+ {[%clk 0:04:51.8]} 4... Kxd8 {[%clk 0:04:50.4]} 5. Bc4
{[%clk 0:04:50.6]} 5... Be6 {[%clk 0:04:48]} 6. Bxe6 {[%clk 0:04:49.1]} 6...
fxe6 {[%clk 0:04:47.1]} 7. Nc3 {[%clk 0:04:35.3]} 7... Nc6 {[%clk 0:04:45.8]} 8.
Bf4 {[%clk 0:04:31.7]} 8... g5 {[%clk 0:04:43.5]} 9. O-O-O+ {[%clk 0:04:31.6]}
9... Kc8 {[%clk 0:04:34.6]} 10. Bg3 {[%clk 0:04:30.5]} 10... Bg7 {[%clk
0:04:33.1]} 11. Nxe4 {[%clk 0:04:26.1]} 11... Bxe5 {[%clk 0:04:18.9]} 12. Nf3
{[%clk 0:04:21.1]} 12... Bf4+ {[%clk 0:04:14.2]} 13. Bxf4 {[%clk 0:04:09.2]}
13... gxf4 {[%clk 0:04:13]} 14. Nfg5 {[%clk 0:04:06.8]} 14... e5 {[%clk
0:04:11.2]} 15. Nf7 {[%clk 0:04:04]} 1-0

[Event "Live Chess"]
[Site "Chess.com"]
[Date "2024.06.01"]
[Round "-"]
[White "OliWally08"]
[Black "LL220284LL"]
[Result "0-1"]
[WhiteElo "1264"]
[BlackElo "2565"]
[TimeControl "300"]
[EndTime "12:13:15 PDT"]
[Termination "LL220284LL won by checkmate"]

1. e4 {[%clk 0:04:59.1]} 1... g6 {[%clk 0:04:59.4]} 2. Nc3 {[%clk 0:04:57.9]}
2... Bg7 {[%clk 0:04:59.3]} 3. d3 {[%clk 0:04:57.5]} 3... d6 {[%clk 0:04:58.7]}
4. Bf4 {[%clk 0:04:56.5]} 4... Nd7 {[%clk 0:04:58]} 5. g3 {[%clk 0:04:55.7]}
5... b6 {[%clk 0:04:50]} 6. Bg2 {[%clk 0:04:54.4]} 6... Bb7 {[%clk 0:04:49.5]}
7. Be3 {[%clk 0:04:53.8]} 7... e6 {[%clk 0:04:45.4]} 8. Nge2 {[%clk 0:04:52.9]}
8... Ngf6 {[%clk 0:04:44.6]} 9. O-O {[%clk 0:04:52.1]} 9... O-O {[%clk 0:04:43]}
10. Qd2 {[%clk 0:04:49.4]} 10... Ng4 {[%clk 0:04:42.1]} 11. Bg5 {[%clk
0:04:43.3]} 11... f6 {[%clk 0:04:40.4]} 12. Be3 {[%clk 0:04:31.9]} 12... a6
{[%clk 0:04:35.3]} 13. h3 {[%clk 0:04:27.3]} 13... Nxe3 {[%clk 0:04:34.2]} 14.
Qxe3 {[%clk 0:04:26.6]} 14... Qe7 {[%clk 0:04:33.6]} 15. f4 {[%clk 0:04:24]}
15... e5 {[%clk 0:04:29.5]} 16. f5 {[%clk 0:04:22.2]} 16... Rf7 {[%clk 0:04:24]}
17. fxg6 {[%clk 0:04:16.9]} 17... hxg6 {[%clk 0:04:23.9]} 18. Rf2 {[%clk
0:04:12.7]} 18... Raf8 {[%clk 0:04:17.2]} 19. Raf1 {[%clk 0:04:11.5]} 19... Nc5
{[%clk 0:04:14.2]} 20. g4 {[%clk 0:03:55.4]} 20... Ne6 {[%clk 0:04:11.6]} 21.
Ng3 {[%clk 0:03:53.3]} 21... Nf4 {[%clk 0:04:08.8]} 22. Nce2 {[%clk 0:03:51.5]}
22... Bh6 {[%clk 0:04:05.3]} 23. Nxf4 {[%clk 0:03:37.8]} 23... exf4 {[%clk
0:04:04]} 24. Rxf4 {[%clk 0:03:25.2]} 24... Bxf4 {[%clk 0:04:02.7]} 25. Qxf4
{[%clk 0:03:24.4]} 25... Qe5 {[%clk 0:04:01.9]} 26. Qxe5 {[%clk 0:03:14.9]}
26... fxe5 {[%clk 0:03:59.4]} 27. Rxf7 {[%clk 0:03:11.3]} 27... Rxf7 {[%clk
0:03:59.3]} 28. h4 {[%clk 0:02:51.9]} 28... Rf4 {[%clk 0:03:56.2]} 29. h5 {[%clk
0:02:49.4]} 29... Rxg4 {[%clk 0:03:54.8]} 30. Ne2 {[%clk 0:02:45.9]} 30... gxh5
{[%clk 0:03:52.6]} 31. Kh2 {[%clk 0:02:42.5]} 31... Bc8 {[%clk 0:03:51]} 32. Bh3
{[%clk 0:02:41.3]} 32... Rh4 {[%clk 0:03:50.4]} 33. Kg3 {[%clk 0:02:37.9]} 33...
Rxh3+ {[%clk 0:03:49.3]} 34. Kg2 {[%clk 0:02:37.4]} 34... Kg7 {[%clk 0:03:48.5]}
35. Ng3 {[%clk 0:02:36.3]} 35... Rxg3+ {[%clk 0:03:47.5]} 36. Kxg3 {[%clk
0:02:35.6]} 36... Kf6 {[%clk 0:03:47.4]} 37. Kh4 {[%clk 0:02:35]} 37... Bg4
{[%clk 0:03:46.7]} 38. a4 {[%clk 0:02:29.6]} 38... c5 {[%clk 0:03:46]} 39. c3
{[%clk 0:02:26.7]} 39... Bd1 {[%clk 0:03:44.5]} 40. d4 {[%clk 0:02:25]} 40...
cxd4 {[%clk 0:03:43.5]} 41. cxd4 {[%clk 0:02:24.6]} 41... exd4 {[%clk
0:03:43.4]} 42. b4 {[%clk 0:02:21.1]} 42... Ke5 {[%clk 0:03:42.2]} 43. Kg3
{[%clk 0:02:18.5]} 43... Kxe4 {[%clk 0:03:41]} 44. b5 {[%clk 0:02:18]} 44...
axb5 {[%clk 0:03:40.1]} 45. axb5 {[%clk 0:02:17.9]} 45... d3 {[%clk 0:03:39.4]}
46. Kf2 {[%clk 0:02:16.4]} 46... d2 {[%clk 0:03:39]} 47. Kf1 {[%clk 0:02:13.9]}
47... Bg4 {[%clk 0:03:38.1]} 48. Kf2 {[%clk 0:02:13]} 48... d1=Q {[%clk
0:03:37.5]} 49. Kg3 {[%clk 0:02:12.9]} 49... Qe1+ {[%clk 0:03:36.5]} 50. Kh2
{[%clk 0:02:11.7]} 50... Qf2+ {[%clk 0:03:36]} 51. Kh1 {[%clk 0:02:11.2]} 51...
Bf3# {[%clk 0:03:35.9]} 0-1